{"text_format":"1","workbook":"xlsx","n_sheets":2,"sheets":["gyj","Лист1"],"not_rendered":{"charts":0,"images":0,"macros":1,"external_links":0,"defined_names":3,"comments":0,"pivot_tables":0},"unopened":[],"bounds":{"document_bytes":16777216,"sheet_cells":100000,"rows_first":2000,"rows_last":500,"rows_between":2000,"halvings":0,"cell_chars":16384,"cell_head_chars":4096},"cells_cut":0,"cells_raw":0,"read":"whole","date_system":"1900"}

{"sheet":"gyj","index":0,"n_rows":39,"n_cols":20,"rows_kept":39,"cut":false,"hidden":false,"merged":[[19,16,21,16],[3,7,9,7],[15,16,18,16],[3,16,9,16],[10,16,14,16],[19,15,21,15],[15,15,18,15],[0,0,0,7],[0,8,0,15],[0,16,1,16],[3,15,9,15],[10,15,14,15],[22,0,22,6],[19,7,21,7],[15,7,18,7],[22,8,22,14],[10,7,14,7]]}
[]
[]
[1,2,3,4,5,6,7,null,1,2,3,4,5,6,7]
[null,null,null,null,null,null,null,{"$f":"((SUM(S4:S10))/7)","v":7},null,null,null,null,null,null,null,{"$f":"((SUM(T4:T10))/7)","v":3.2857142857142856},{"$f":"H4*50%+P4*50%","v":5.1428571428571423},1,{"$f":"CountColor(B4,$A$2)*B$3+CountColor(C4,$A$2)*C$3+CountColor(D4,$A$2)*D$3+CountColor(E4,$A$2)*E$3+CountColor(F4,$A$2)*F$3+CountColor(G4,$A$2)*G$3+CountColor(A4,$A$2)*A$3","v":7},{"$f":"CountColor(J4,$I$2)*J$3+CountColor(K4,$I$2)*K$3+CountColor(L4,$I$2)*L$3+CountColor(M4,$I$2)*M$3+CountColor(N4,$I$2)*N$3+CountColor(O4,$I$2)*O$3+CountColor(I4,$I$2)*I$3","v":4}]
[null,null,null,null,null,null,null,null,null,null,null,null,null,null,null,null,null,2,{"$f":"CountColor(B5,$A$2)*B$3+CountColor(C5,$A$2)*C$3+CountColor(D5,$A$2)*D$3+CountColor(E5,$A$2)*E$3+CountColor(F5,$A$2)*F$3+CountColor(G5,$A$2)*G$3+CountColor(A5,$A$2)*A$3","v":7},{"$f":"CountColor(J5,$I$2)*J$3+CountColor(K5,$I$2)*K$3+CountColor(L5,$I$2)*L$3+CountColor(M5,$I$2)*M$3+CountColor(N5,$I$2)*N$3+CountColor(O5,$I$2)*O$3+CountColor(I5,$I$2)*I$3","v":4}]
[null,null,null,null,null,null,null,null,null,null,null,null,null,null,null,null,null,6,{"$f":"CountColor(B6,$A$2)*B$3+CountColor(C6,$A$2)*C$3+CountColor(D6,$A$2)*D$3+CountColor(E6,$A$2)*E$3+CountColor(F6,$A$2)*F$3+CountColor(G6,$A$2)*G$3+CountColor(A6,$A$2)*A$3","v":7},{"$f":"CountColor(J6,$I$2)*J$3+CountColor(K6,$I$2)*K$3+CountColor(L6,$I$2)*L$3+CountColor(M6,$I$2)*M$3+CountColor(N6,$I$2)*N$3+CountColor(O6,$I$2)*O$3+CountColor(I6,$I$2)*I$3","v":3}]
[null,null,null,null,null,null,null,null,null,null,null,null,null,null,null,null,null,0,{"$f":"CountColor(B7,$A$2)*B$3+CountColor(C7,$A$2)*C$3+CountColor(D7,$A$2)*D$3+CountColor(E7,$A$2)*E$3+CountColor(F7,$A$2)*F$3+CountColor(G7,$A$2)*G$3+CountColor(A7,$A$2)*A$3","v":7},{"$f":"CountColor(J7,$I$2)*J$3+CountColor(K7,$I$2)*K$3+CountColor(L7,$I$2)*L$3+CountColor(M7,$I$2)*M$3+CountColor(N7,$I$2)*N$3+CountColor(O7,$I$2)*O$3+CountColor(I7,$I$2)*I$3","v":3}]
[null,null,null,null,null,null,null,null,null,null,null,null,null,null,null,null,null,0,{"$f":"CountColor(B8,$A$2)*B$3+CountColor(C8,$A$2)*C$3+CountColor(D8,$A$2)*D$3+CountColor(E8,$A$2)*E$3+CountColor(F8,$A$2)*F$3+CountColor(G8,$A$2)*G$3+CountColor(A8,$A$2)*A$3","v":7},{"$f":"CountColor(J8,$I$2)*J$3+CountColor(K8,$I$2)*K$3+CountColor(L8,$I$2)*L$3+CountColor(M8,$I$2)*M$3+CountColor(N8,$I$2)*N$3+CountColor(O8,$I$2)*O$3+CountColor(I8,$I$2)*I$3","v":3}]
[null,null,null,null,null,null,null,null,null,null,null,null,null,null,null,null,null,3,{"$f":"CountColor(B9,$A$2)*B$3+CountColor(C9,$A$2)*C$3+CountColor(D9,$A$2)*D$3+CountColor(E9,$A$2)*E$3+CountColor(F9,$A$2)*F$3+CountColor(G9,$A$2)*G$3+CountColor(A9,$A$2)*A$3","v":7},{"$f":"CountColor(J9,$I$2)*J$3+CountColor(K9,$I$2)*K$3+CountColor(L9,$I$2)*L$3+CountColor(M9,$I$2)*M$3+CountColor(N9,$I$2)*N$3+CountColor(O9,$I$2)*O$3+CountColor(I9,$I$2)*I$3","v":3}]
[null,null,null,null,null,null,null,null,null,null,null,null,null,null,null,null,null,4,{"$f":"CountColor(B10,$A$2)*B$3+CountColor(C10,$A$2)*C$3+CountColor(D10,$A$2)*D$3+CountColor(E10,$A$2)*E$3+CountColor(F10,$A$2)*F$3+CountColor(G10,$A$2)*G$3+CountColor(A10,$A$2)*A$3","v":7},{"$f":"CountColor(J10,$I$2)*J$3+CountColor(K10,$I$2)*K$3+CountColor(L10,$I$2)*L$3+CountColor(M10,$I$2)*M$3+CountColor(N10,$I$2)*N$3+CountColor(O10,$I$2)*O$3+CountColor(I10,$I$2)*I$3","v":3}]
[null,null,null,null,null,null,null,{"$f":"((SUM(S11:S15))/5)","v":6},null,null,null,null,null,null,null,{"$f":"((SUM(T11:T15))/5)","v":3.4},{"$f":"H11*50%+P11*50%","v":4.7},96,{"$f":"CountColor(B11,$A$2)*B$3+CountColor(C11,$A$2)*C$3+CountColor(D11,$A$2)*D$3+CountColor(E11,$A$2)*E$3+CountColor(F11,$A$2)*F$3+CountColor(G11,$A$2)*G$3+CountColor(A11,$A$2)*A$3","v":5},{"$f":"CountColor(J11,$I$2)*J$3+CountColor(K11,$I$2)*K$3+CountColor(L11,$I$2)*L$3+CountColor(M11,$I$2)*M$3+CountColor(N11,$I$2)*N$3+CountColor(O11,$I$2)*O$3+CountColor(I11,$I$2)*I$3","v":4}]
[null,null,null,null,null,null,null,null,null,null,null,null,null,null,null,null,null,32,{"$f":"CountColor(B12,$A$2)*B$3+CountColor(C12,$A$2)*C$3+CountColor(D12,$A$2)*D$3+CountColor(E12,$A$2)*E$3+CountColor(F12,$A$2)*F$3+CountColor(G12,$A$2)*G$3+CountColor(A12,$A$2)*A$3","v":7},{"$f":"CountColor(J12,$I$2)*J$3+CountColor(K12,$I$2)*K$3+CountColor(L12,$I$2)*L$3+CountColor(M12,$I$2)*M$3+CountColor(N12,$I$2)*N$3+CountColor(O12,$I$2)*O$3+CountColor(I12,$I$2)*I$3","v":3}]
[null,null,null,null,null,null,null,null,null,null,null,null,null,null,null,null,null,49.75,{"$f":"CountColor(B13,$A$2)*B$3+CountColor(C13,$A$2)*C$3+CountColor(D13,$A$2)*D$3+CountColor(E13,$A$2)*E$3+CountColor(F13,$A$2)*F$3+CountColor(G13,$A$2)*G$3+CountColor(A13,$A$2)*A$3","v":7},{"$f":"CountColor(J13,$I$2)*J$3+CountColor(K13,$I$2)*K$3+CountColor(L13,$I$2)*L$3+CountColor(M13,$I$2)*M$3+CountColor(N13,$I$2)*N$3+CountColor(O13,$I$2)*O$3+CountColor(I13,$I$2)*I$3","v":3}]
[null,null,null,null,null,null,null,null,null,null,null,null,null,null,null,null,null,56.5,{"$f":"CountColor(B14,$A$2)*B$3+CountColor(C14,$A$2)*C$3+CountColor(D14,$A$2)*D$3+CountColor(E14,$A$2)*E$3+CountColor(F14,$A$2)*F$3+CountColor(G14,$A$2)*G$3+CountColor(A14,$A$2)*A$3","v":4},{"$f":"CountColor(J14,$I$2)*J$3+CountColor(K14,$I$2)*K$3+CountColor(L14,$I$2)*L$3+CountColor(M14,$I$2)*M$3+CountColor(N14,$I$2)*N$3+CountColor(O14,$I$2)*O$3+CountColor(I14,$I$2)*I$3","v":3}]
[null,null,null,null,null,null,null,null,null,null,null,null,null,null,null,null,null,63.25,{"$f":"CountColor(B15,$A$2)*B$3+CountColor(C15,$A$2)*C$3+CountColor(D15,$A$2)*D$3+CountColor(E15,$A$2)*E$3+CountColor(F15,$A$2)*F$3+CountColor(G15,$A$2)*G$3+CountColor(A15,$A$2)*A$3","v":7},{"$f":"CountColor(J15,$I$2)*J$3+CountColor(K15,$I$2)*K$3+CountColor(L15,$I$2)*L$3+CountColor(M15,$I$2)*M$3+CountColor(N15,$I$2)*N$3+CountColor(O15,$I$2)*O$3+CountColor(I15,$I$2)*I$3","v":4}]
[null,null,null,null,null,null,null,{"$f":"((SUM(S16:S19))/4)","v":5.5},null,null,null,null,null,null,null,{"$f":"((SUM(T16:T19))/4)","v":4.25},{"$f":"H16*50%+P16*50%","v":4.875},70,{"$f":"CountColor(B16,$A$2)*B$3+CountColor(C16,$A$2)*C$3+CountColor(D16,$A$2)*D$3+CountColor(E16,$A$2)*E$3+CountColor(F16,$A$2)*F$3+CountColor(G16,$A$2)*G$3+CountColor(A16,$A$2)*A$3","v":7},{"$f":"CountColor(J16,$I$2)*J$3+CountColor(K16,$I$2)*K$3+CountColor(L16,$I$2)*L$3+CountColor(M16,$I$2)*M$3+CountColor(N16,$I$2)*N$3+CountColor(O16,$I$2)*O$3+CountColor(I16,$I$2)*I$3","v":3}]
[null,null,null,null,null,null,null,null,null,null,null,null,null,null,null,null,null,76.75,{"$f":"CountColor(B17,$A$2)*B$3+CountColor(C17,$A$2)*C$3+CountColor(D17,$A$2)*D$3+CountColor(E17,$A$2)*E$3+CountColor(F17,$A$2)*F$3+CountColor(G17,$A$2)*G$3+CountColor(A17,$A$2)*A$3","v":3},{"$f":"CountColor(J17,$I$2)*J$3+CountColor(K17,$I$2)*K$3+CountColor(L17,$I$2)*L$3+CountColor(M17,$I$2)*M$3+CountColor(N17,$I$2)*N$3+CountColor(O17,$I$2)*O$3+CountColor(I17,$I$2)*I$3","v":6}]
[null,null,null,null,null,null,null,null,null,null,null,null,null,null,null,null,null,83.5,{"$f":"CountColor(B18,$A$2)*B$3+CountColor(C18,$A$2)*C$3+CountColor(D18,$A$2)*D$3+CountColor(E18,$A$2)*E$3+CountColor(F18,$A$2)*F$3+CountColor(G18,$A$2)*G$3+CountColor(A18,$A$2)*A$3","v":5},{"$f":"CountColor(J18,$I$2)*J$3+CountColor(K18,$I$2)*K$3+CountColor(L18,$I$2)*L$3+CountColor(M18,$I$2)*M$3+CountColor(N18,$I$2)*N$3+CountColor(O18,$I$2)*O$3+CountColor(I18,$I$2)*I$3","v":4}]
[null,null,null,null,null,null,null,null,null,null,null,null,null,null,null,null,null,90.25,{"$f":"CountColor(B19,$A$2)*B$3+CountColor(C19,$A$2)*C$3+CountColor(D19,$A$2)*D$3+CountColor(E19,$A$2)*E$3+CountColor(F19,$A$2)*F$3+CountColor(G19,$A$2)*G$3+CountColor(A19,$A$2)*A$3","v":7},{"$f":"CountColor(J19,$I$2)*J$3+CountColor(K19,$I$2)*K$3+CountColor(L19,$I$2)*L$3+CountColor(M19,$I$2)*M$3+CountColor(N19,$I$2)*N$3+CountColor(O19,$I$2)*O$3+CountColor(I19,$I$2)*I$3","v":4}]
[null,null,null,null,null,null,null,{"$f":"((SUM(S20:S22))/3)","v":5.666666666666667},null,null,null,null,null,null,null,{"$f":"((SUM(T20:T22))/3)","v":4.666666666666667},{"$f":"H20*50%+P20*50%","v":5.166666666666667},97,{"$f":"CountColor(B20,$A$2)*B$3+CountColor(C20,$A$2)*C$3+CountColor(D20,$A$2)*D$3+CountColor(E20,$A$2)*E$3+CountColor(F20,$A$2)*F$3+CountColor(G20,$A$2)*G$3+CountColor(A20,$A$2)*A$3","v":5},{"$f":"CountColor(J20,$I$2)*J$3+CountColor(K20,$I$2)*K$3+CountColor(L20,$I$2)*L$3+CountColor(M20,$I$2)*M$3+CountColor(N20,$I$2)*N$3+CountColor(O20,$I$2)*O$3+CountColor(I20,$I$2)*I$3","v":6}]
[null,null,null,null,null,null,null,null,null,null,null,null,null,null,null,null,null,103.75,{"$f":"CountColor(B21,$A$2)*B$3+CountColor(C21,$A$2)*C$3+CountColor(D21,$A$2)*D$3+CountColor(E21,$A$2)*E$3+CountColor(F21,$A$2)*F$3+CountColor(G21,$A$2)*G$3+CountColor(A21,$A$2)*A$3","v":6},{"$f":"CountColor(J21,$I$2)*J$3+CountColor(K21,$I$2)*K$3+CountColor(L21,$I$2)*L$3+CountColor(M21,$I$2)*M$3+CountColor(N21,$I$2)*N$3+CountColor(O21,$I$2)*O$3+CountColor(I21,$I$2)*I$3","v":5}]
[null,null,null,null,null,null,null,null,null,null,null,null,null,null,null,null,null,110.5,{"$f":"CountColor(B22,$A$2)*B$3+CountColor(C22,$A$2)*C$3+CountColor(D22,$A$2)*D$3+CountColor(E22,$A$2)*E$3+CountColor(F22,$A$2)*F$3+CountColor(G22,$A$2)*G$3+CountColor(A22,$A$2)*A$3","v":6},{"$f":"CountColor(J22,$I$2)*J$3+CountColor(K22,$I$2)*K$3+CountColor(L22,$I$2)*L$3+CountColor(M22,$I$2)*M$3+CountColor(N22,$I$2)*N$3+CountColor(O22,$I$2)*O$3+CountColor(I22,$I$2)*I$3","v":3}]
[{"$f":"IF(S23=19,\" \",\"Вы отметили не все индикаторы.\")","v":"Вы отметили не все индикаторы."},null,null,null,null,null,null,{"$f":"IF(A23=\" \",SUM(H4:H22)/(COUNTIF(H4:H22,\">0\")),0)","v":0},{"$f":"IF(T23=19,\" \",\"Вы отметили не все индикаторы.\")","v":"Вы отметили не все индикаторы."},null,null,null,null,null,null,{"$f":"IF(I23=\" \",SUM(P4:P22)/(COUNTIF(P4:P22,\">0\")),0)","v":0},{"$f":"IF(AND(A23=\" \",I23=\" \"),SUM(Q4:Q22)/(COUNTIF(Q4:Q22,\">0\")),0)","v":0}]
[]
[]
[]
[]
[]
[]
[]
[]
[]
[]
[]
[]
[]
[]
[]
["х","х","х","х","х","х","х","х"]

{"sheet":"Лист1","index":1,"n_rows":1,"n_cols":3,"rows_kept":1,"cut":false,"hidden":false,"merged":[]}
[{"$f":"gyj!H23","v":0},{"$f":"gyj!P23","v":0},{"$f":"gyj!Q23","v":0}]